bitfinex/quotes_BTCUSD_20240101
["timestamp","ask_amount","ask_price","bid_price","bid_amount"]
[1704129288383,0.1833,42833.0,42828.0,0.24248571]
[1704129288615,0.466973,42829.0,42828.0,0.10255545]
[1704129288844,0.466973,42829.0,42828.0,0.0092686]
[1704129289297,0.466973,42829.0,42828.0,0.0082686]
[1704129289766,0.466973,42829.0,42828.0,0.0072686]
[1704129290197,0.466973,42829.0,42828.0,0.23421711]
[1704129290431,0.466973,42829.0,42828.0,0.24083031]
[1704129290947,0.466973,42829.0,42828.0,0.24183031]
[1704129296654,0.466973,42829.0,42828.0,0.33511716]
[1704129296890,0.466973,42829.0,42828.0,0.24183031]
[1704129297580,0.933946,42829.0,42828.0,0.24183031]
[1704129298428,0.93348127,42829.0,42828.0,0.24183031]
[1704129299569,0.46650827,42829.0,42828.0,0.33511716]
[1704129300032,0.46650827,42829.0,42828.0,0.24183031]
[1704129300728,0.39650827,42829.0,42828.0,0.24183031]
[1704129301987,0.39650827,42829.0,42828.0,0.33511716]
[1704129304469,0.39650827,42829.0,42828.0,0.24183031]
[1704129308163,0.39650827,42829.0,42828.0,0.58743031]
[1704129309898,0.39650827,42829.0,42828.0,0.54183031]
[1704129310327,0.39650827,42829.0,42828.0,0.58887031]
[1704129311176,0.39650827,42829.0,42828.0,0.54183031]
[1704129311621,0.39650827,42829.0,42828.0,0.58671031]
[1704129311828,0.39650827,42829.0,42828.0,0.54183031]
[1704129312641,0.39650827,42829.0,42828.0,0.58911031]
[1704129313943,0.39650827,42829.0,42828.0,0.54183031]
[1704129316758,0.192,42835.0,42828.0,0.54183031]
[1704129316759,0.192,42835.0,42830.0,0.1]
[1704129316960,0.46694,42832.0,42831.0,0.32650396]
[1704129317160,0.46694,42832.0,42831.0,0.23321711]
[1704129317440,0.46694,42832.0,42831.0,0.24047561]
[1704129317650,0.46694,42832.0,42831.0,0.0072585]
[1704129318284,0.46694,42832.0,42828.0,0.001]
[1704129318489,0.466924,42834.0,42831.0,0.0072585]
[1704129318671,0.46694,42832.0,42831.0,0.0072585]
[1704129318877,0.46794,42832.0,42829.0,0.23321711]
[1704129319091,0.466962,42830.0,42829.0,0.23321711]
[1704129320652,0.467962,42830.0,42829.0,0.23321711]
[1704129325622,0.467962,42830.0,42829.0,0.32650396]
[1704129329113,0.467962,42830.0,42829.0,0.23321711]
[1704129330480,0.467962,42830.0,42829.0,0.33311343]
[1704129344437,0.934924,42830.0,42829.0,0.33311343]
[1704129351109,0.467962,42830.0,42829.0,0.33311343]
[1704129357407,0.467962,42830.0,42829.0,0.09989632]
[1704129358273,0.001,42830.0,42829.0,0.09989632]
[1704129358480,0.467962,42830.0,42829.0,0.09989632]
[1704129358919,0.467962,42830.0,42829.0,0.00660947]
[1704129359349,0.466984,42828.0,42827.0,0.2107]
[1704129359604,0.466984,42828.0,42827.0,0.44391711]
[1704129360456,0.466984,42828.0,42827.0,0.53720396]
[1704129360665,0.466984,42828.0,42827.0,0.54782201]
[1704129360849,0.396984,42828.0,42827.0,0.54782201]
[1704129362788,0.396984,42828.0,42827.0,0.01061805]
[1704129363006,0.863968,42828.0,42827.0,0.01061805]
[1704129363472,0.863968,42828.0,42827.0,0.1039049]
[1704129365610,0.466984,42828.0,42827.0,0.1039049]
[1704129365828,0.933968,42828.0,42827.0,0.1039049]
[1704129366645,0.933968,42828.0,42827.0,0.004]
[1704129367897,0.933968,42828.0,42827.0,0.09728685]
[1704129371911,0.933968,42828.0,42827.0,0.10391158]
[1704129372340,1.400952,42828.0,42827.0,0.10391158]
[1704129372576,1.400952,42828.0,42827.0,0.09728685]
[1704129373014,1.45701191,42828.0,42819.0,0.2275]
[1704129373231,0.467071,42820.0,42819.0,0.46071711]
[1704129373480,0.934142,42820.0,42813.0,0.05593652]
[1704129373721,0.09328685,42819.0,42814.0,0.46071711]
[1704129373963,0.467098,42818.0,42814.0,0.46071711]
[1704129374167,0.467126,42815.0,42814.0,0.46071711]
[1704129375679,0.467126,42815.0,42814.0,0.23750907]
[1704129376323,0.467126,42815.0,42814.0,0.01000907]
[1704129376781,0.467126,42815.0,42814.0,0.006]
[1704129377012,0.467126,42815.0,42814.0,0.01300907]
[1704129377259,0.934252,42815.0,42814.0,0.006]
[1704129377466,0.934252,42815.0,42814.0,0.01300907]
[1704129377644,0.934252,42815.0,42808.0,0.2218]
[1704129377905,0.934252,42815.0,42809.0,0.23321711]
[1704129377906,0.467126,42815.0,42809.0,0.23321711]
[1704129378113,0.467145,42814.0,42809.0,0.24200041]
[1704129378324,0.46718,42810.0,42809.0,0.24200041]
[1704129380644,0.46718,42810.0,42809.0,0.24400041]
[1704129381343,0.46718,42810.0,42809.0,0.24600041]
[1704129382640,0.46718,42810.0,42809.0,0.0127833]
[1704129383277,0.46718,42810.0,42809.0,0.004]
[1704129383897,0.46718,42810.0,42809.0,0.002]
[1704129384104,0.47018,42810.0,42809.0,0.002]
[1704129384319,0.47018,42810.0,42802.0,0.2142]
[1704129384533,0.47018,42810.0,42803.0,0.23321711]
[1704129384534,0.56246685,42810.0,42803.0,0.23321711]
[1704129384742,0.47218,42810.0,42809.0,0.00706669]
[1704129384964,0.003,42810.0,42801.0,0.2142]
[1704129385196,0.003,42810.0,42809.0,0.00706669]
[1704129385197,0.09628685,42810.0,42809.0,0.00706669]
[1704129385407,0.09628685,42810.0,42802.0,0.23321711]
[1704129385408,0.005,42810.0,42802.0,0.23321711]
[1704129385623,0.467256,42803.0,42802.0,0.23321711]
[1704129387324,0.467256,42803.0,42802.0,0.002]
[1704129387746,0.467256,42803.0,42802.0,0.004]
[1704129388160,0.934512,42803.0,42802.0,0.004]
[1704129389487,0.934512,42803.0,42802.0,0.002]
[1704129390019,0.467322,42797.0,42796.0,0.2115]
[1704129390271,0.467322,42797.0,42796.0,0.44471711]
[1704129390473,0.467322,42797.0,42796.0,0.23321711]
[1704129390782,0.467322,42797.0,42796.0,0.24042044]
[1704129391192,0.467322,42797.0,42796.0,0.24842044]
[1704129391628,0.467322,42797.0,42796.0,0.25642044]
[1704129394919,0.467322,42797.0,42796.0,0.24842044]
[1704129395338,0.467322,42797.0,42796.0,0.25442044]
[1704129396010,0.934644,42797.0,42796.0,0.02120333]
[1704129396232,0.467322,42797.0,42796.0,0.02120333]
[1704129396449,0.467322,42797.0,42796.0,0.006]
[1704129396662,0.467322,42797.0,42796.0,0.01321718]
[1704129396893,0.467322,42797.0,42796.0,0.012]
[1704129397112,0.934644,42797.0,42796.0,0.01256107]
[1704129397321,0.934644,42797.0,42796.0,0.00656107]
[1704129397532,0.934644,42797.0,42796.0,0.002]
[1704129397742,0.934644,42797.0,42796.0,0.004]
[1704129399817,1.401966,42797.0,42796.0,0.004]
[1704129400679,1.401966,42797.0,42796.0,0.002]
[1704129400910,1.401966,42797.0,42792.0,0.2115]
[1704129401125,0.934732,42793.0,42792.0,0.2115]
[1704129402851,0.934732,42793.0,42792.0,0.2135]
[1704129403715,0.934732,42793.0,42792.0,0.2155]
[1704129404168,0.467366,42793.0,42792.0,0.2155]
[1704129404599,0.934732,42793.0,42792.0,0.2155]
[1704129405568,0.934732,42793.0,42792.0,0.2227662]
[1704129407855,0.467366,42793.0,42792.0,0.2227662]
[1704129408651,0.934732,42793.0,42792.0,0.2227662]
[1704129412587,1.03440257,42793.0,42792.0,0.2227662]
[1704129413038,0.934732,42793.0,42792.0,0.2227662]
[1704129413713,1.03493394,42793.0,42792.0,0.2227662]
[1704129415956,0.934732,42793.0,42792.0,0.2227662]
[1704129416843,1.03087622,42793.0,42792.0,0.2227662]
[1704129420891,1.03087622,42793.0,42792.0,0.45598331]
[1704129421138,0.397366,42793.0,42792.0,0.45598331]
[1704129421415,0.397366,42793.0,42792.0,0.65598331]
[1704129423200,0.397366,42793.0,42792.0,0.75598331]
[1704129428260,0.397366,42793.0,42792.0,0.80320331]
[1704129428474,0.517187,42810.0,42805.0,0.2]
[1704129428696,0.517187,42810.0,42806.0,0.23321711]
[1704129428697,0.09649755,42809.0,42806.0,0.23321711]
[1704129428909,0.517187,42810.0,42806.0,0.24042617]
[1704129429142,0.467213,42807.0,42806.0,0.24042617]
[1704129430453,0.468213,42807.0,42806.0,0.24042617]
[1704129447872,0.935426,42807.0,42806.0,0.00720906]
[1704129448315,0.935426,42807.0,42800.0,0.2]
[1704129448525,0.467236,42805.0,42801.0,0.23321711]
[1704129448943,0.467267,42802.0,42801.0,0.23321711]
[1704129450902,0.467267,42802.0,42801.0,0.24038251]
[1704129451556,0.467267,42802.0,42801.0,0.24338251]
[1704129452013,0.467267,42802.0,42801.0,0.24638251]
[1704129453686,0.934534,42802.0,42801.0,0.24638251]
[1704129453909,0.04782,42807.0,42801.0,0.24638251]
[1704129453910,0.07632448,42808.0,42801.0,0.24638251]
[1704129454124,0.467267,42802.0,42801.0,0.24638251]
[1704129454330,0.934534,42802.0,42801.0,0.24638251]
[1704129454760,0.934534,42802.0,42801.0,0.24038251]
[1704129455824,0.934534,42802.0,42801.0,0.24338251]
[1704129456875,0.934534,42802.0,42801.0,0.24638251]
[1704129457571,0.467267,42802.0,42801.0,0.24638251]
[1704129458621,0.934534,42802.0,42801.0,0.24638251]
[1704129460506,0.467267,42802.0,42801.0,0.24638251]
[1704129466988,0.1824,42811.0,42805.0,0.2]
[1704129467238,0.1824,42811.0,42806.0,0.23321711]
[1704129467239,0.467187,42810.0,42806.0,0.23321711]
[1704129467453,0.467213,42807.0,42806.0,0.24038759]
[1704129468714,0.934426,42807.0,42806.0,0.00717048]
[1704129469428,0.935426,42807.0,42806.0,0.00717048]
[1704129469648,0.935426,42807.0,42802.0,0.3099]
[1704129469896,0.468213,42807.0,42803.0,0.23321711]
[1704129470110,0.467226,42806.0,42803.0,0.24039814]
[1704129470325,0.468213,42807.0,42803.0,0.24039814]
[1704129470538,0.467246,42804.0,42803.0,0.24039814]
[1704129477039,0.467213,42807.0,42806.0,0.2]
[1704129477248,0.467193,42809.0,42808.0,0.2]
[1704129477462,0.467132,42815.0,42813.0,0.2]
[1704129477667,0.467132,42815.0,42814.0,0.23321711]
[1704129477879,0.467132,42815.0,42814.0,0.23969704]
[1704129478290,0.467132,42815.0,42814.0,0.43969704]
[1704129480412,0.468132,42815.0,42814.0,0.43969704]
[1704129480601,0.467132,42815.0,42814.0,0.43969704]
[1704129480969,0.467132,42815.0,42814.0,0.44569704]
[1704129481145,0.397132,42815.0,42814.0,0.44569704]
[1704129482662,0.02795834,42822.0,42815.0,0.2]
[1704129482856,0.02795834,42822.0,42816.0,0.23321711]
[1704129483029,0.467069,42821.0,42816.0,0.46251244]
[1704129483398,0.467104,42817.0,42816.0,0.46251244]
[1704129484925,0.468104,42817.0,42816.0,0.46251244]
[1704129485594,0.468104,42817.0,42816.0,0.82053244]
[1704129486694,0.467072,42820.0,42819.0,0.3]
[1704129486905,0.467072,42820.0,42819.0,0.53321711]
[1704129487323,0.467072,42820.0,42819.0,0.54163618]
[1704129487783,0.467072,42820.0,42819.0,0.24163618]
[1704129488004,0.468072,42820.0,42819.0,0.24163618]
[1704129488901,0.468072,42820.0,42819.0,0.00841907]
[1704129489340,0.468072,42820.0,42816.0,0.2218]
[1704129489551,0.468072,42820.0,42819.0,0.00748362]
[1704129489768,0.468072,42820.0,42817.0,0.23321711]
[1704129489975,0.467093,42818.0,42817.0,0.23321711]
[1704129491268,0.467093,42818.0,42817.0,0.23521711]
[1704129491975,0.467093,42818.0,42817.0,0.23721711]
[1704129493675,0.467093,42818.0,42817.0,0.23521711]
[1704129494126,0.467093,42818.0,42817.0,0.23321711]
[1704129494555,0.468093,42818.0,42817.0,0.23321711]
[1704129494771,0.467093,42818.0,42817.0,0.23321711]
[1704129494983,0.468093,42818.0,42817.0,0.23321711]
[1704129495655,0.468093,42818.0,42817.0,0.2406925]
[1704129499114,0.468093,42818.0,42817.0,0.00747539]
[1704129499115,0.935186,42818.0,42817.0,0.00747539]
[1704129499358,1.402279,42818.0,42817.0,0.00747539]
[1704129499585,1.402279,42818.0,42807.0,0.2122]
[1704129499802,0.09328685,42817.0,42808.0,0.23321711]
[1704129500014,0.93426,42815.0,42808.0,0.24119688]
[1704129500223,0.467191,42809.0,42808.0,0.24119688]
[1704129500431,0.56047785,42809.0,42808.0,0.24119688]
[1704129500646,0.467191,42809.0,42808.0,0.24119688]
[1704129501940,0.467191,42809.0,42808.0,0.24219688]
[1704129502779,0.467191,42809.0,42808.0,0.24319688]
[1704129504722,0.1979,42816.0,42808.0,0.24319688]
[1704129505138,0.467191,42809.0,42808.0,0.24319688]
[1704129506918,0.467191,42809.0,42808.0,0.24119688]
[1704129507143,0.467191,42809.0,42808.0,0.24319688]
[1704129507597,0.467191,42809.0,42808.0,0.24119688]
[1704129507811,0.467191,42809.0,42808.0,0.24219688]
[1704129508026,0.467191,42809.0,42808.0,0.24319688]
[1704129508219,0.934382,42809.0,42808.0,0.00997977]
[1704129508484,0.467191,42809.0,42808.0,0.00997977]
[1704129508703,0.467191,42809.0,42808.0,0.002]
[1704129508917,0.934382,42809.0,42808.0,0.002]
[1704129509347,0.934382,42809.0,42808.0,0.001]
[1704129509785,0.936382,42809.0,42808.0,0.001]
[1704129509995,0.936382,42809.0,42801.0,0.8862]
[1704129510208,0.467212,42808.0,42802.0,0.23321711]
[1704129510418,0.467222,42807.0,42802.0,0.24129112]
[1704129511741,0.467256,42803.0,42802.0,0.24129112]
[1704129511959,0.467256,42803.0,42802.0,0.00807401]
[1704129512660,0.467256,42803.0,42798.0,0.2254]
[1704129512908,0.469222,42807.0,42802.0,0.00807401]
[1704129513147,0.467229,42806.0,42799.0,0.23321711]
[1704129513351,0.467229,42806.0,42803.0,0.00806962]
[1704129513627,0.467246,42804.0,42802.0,0.005]
[1704129513866,0.467229,42806.0,42804.0,0.00806522]
[1704129514077,0.467229,42806.0,42803.0,0.00806962]
[1704129514281,0.467229,42806.0,42805.0,0.00806083]
[1704129514519,0.467229,42806.0,42804.0,0.00806522]
[1704129514728,0.467235,42805.0,42799.0,0.23421711]
[1704129514966,0.467289,42800.0,42799.0,0.23421711]
[1704129515607,0.467289,42800.0,42799.0,0.23321711]
[1704129516319,0.467289,42800.0,42799.0,0.49699711]
[1704129516537,0.467273,42802.0,42801.0,0.2]
[1704129516750,0.467273,42802.0,42801.0,0.43321711]
[1704129517629,0.467273,42802.0,42801.0,0.43621711]
[1704129518282,0.467273,42802.0,42801.0,0.43921711]
[1704129525598,0.467273,42802.0,42801.0,0.44731314]
[1704129535089,0.467239,42805.0,42804.0,0.2]
[1704129535264,0.1855,42813.0,42804.0,0.2]
[1704129535265,0.467223,42807.0,42806.0,0.2]
[1704129535534,0.527104,42817.0,42809.0,0.2]
[1704129535535,0.02867246,42816.0,42809.0,0.2]
[1704129535794,0.467177,42811.0,42810.0,0.23321711]
[1704129536031,0.467177,42811.0,42810.0,0.46187038]
[1704129541353,0.397177,42811.0,42810.0,0.46187038]
[1704129541556,0.1855,42816.0,42810.0,0.46187038]
[1704129541771,0.467177,42811.0,42810.0,0.46187038]
[1704129542604,0.467177,42811.0,42810.0,0.46287038]
[1704129543178,0.467177,42811.0,42810.0,0.46187038]
[1704129551874,0.467177,42811.0,42810.0,0.00805327]
[1704129552084,0.934354,42811.0,42810.0,0.00805327]
[1704129552304,0.934354,42811.0,42804.0,0.8821]
[1704129552529,0.934354,42811.0,42810.0,0.00803275]
[1704129552530,0.467177,42811.0,42810.0,0.00803275]
[1704129552772,0.467177,42811.0,42805.0,0.23321711]
[1704129552987,0.467224,42806.0,42805.0,0.23321711]
[1704129554597,0.467224,42806.0,42805.0,0.23621711]
[1704129555049,0.467224,42806.0,42805.0,0.23921711]
[1704129555942,0.467224,42806.0,42805.0,0.24727183]
[1704129561499,0.467224,42806.0,42805.0,0.01405472]
[1704129561727,0.934448,42806.0,42805.0,0.01405472]
[1704129562224,0.934448,42806.0,42805.0,0.01105472]
[1704129562448,0.934448,42806.0,42805.0,0.003]
[1704129563644,0.04734,42810.0,42805.0,0.003]
[1704129563931,0.934448,42806.0,42805.0,0.003]
[1704129564164,0.934448,42806.0,42799.0,0.2229]
[1704129564391,0.467235,42805.0,42800.0,0.23321711]
[1704129565427,0.467235,42805.0,42800.0,0.23521711]
[1704129565678,0.467278,42801.0,42800.0,0.23721711]
[1704129566739,0.467278,42801.0,42800.0,0.23521711]
[1704129566950,0.467278,42801.0,42800.0,0.23321711]
[1704129567166,0.1888,42808.0,42800.0,0.24121711]
[1704129567389,0.467278,42801.0,42800.0,0.24121711]
[1704129567599,0.467278,42801.0,42800.0,0.24821711]
[1704129568459,0.467278,42801.0,42800.0,0.24121711]
[1704129569339,0.467278,42801.0,42800.0,0.008]
[1704129570395,0.467278,42801.0,42800.0,0.015]
[1704129570830,0.467278,42801.0,42800.0,0.023102]
[1704129578125,0.467278,42801.0,42800.0,0.45631911]
[1704129578352,0.467251,42804.0,42801.0,0.2]
[1704129578566,0.467251,42804.0,42800.0,0.31493911]
[1704129578567,0.467251,42804.0,42802.0,0.43321711]
[1704129578782,0.02858707,42807.0,42803.0,0.2]
[1704129578783,0.467222,42807.0,42803.0,0.2]
[1704129579036,0.467222,42807.0,42805.0,0.2]
[1704129579252,0.467218,42807.0,42806.0,0.23321711]
[1704129579462,0.467218,42807.0,42806.0,0.24128884]
[1704129580482,0.467218,42807.0,42806.0,0.24328884]
[1704129581618,0.467218,42807.0,42806.0,0.24528884]
[1704129582083,0.467218,42807.0,42806.0,0.01207173]
[1704129582958,0.46722,42807.0,42806.0,0.01207173]
[1704129588411,0.93444,42807.0,42806.0,0.01207173]
[1704129592551,0.46722,42807.0,42806.0,0.24528884]
[1704129596783,0.467213,42807.0,42806.0,0.01207173]
[1704129596965,0.467213,42807.0,42806.0,0.24528884]
[1704129600982,0.467213,42807.0,42806.0,0.01207173]
[1704129601188,0.934426,42807.0,42806.0,0.01207173]
[1704129601609,0.864426,42807.0,42806.0,0.01207173]
[1704129601820,0.864426,42807.0,42806.0,0.00807173]
[1704129602003,0.864426,42807.0,42803.0,0.2064]
[1704129602211,0.467224,42806.0,42804.0,0.23321711]
[1704129603599,0.467235,42805.0,42804.0,0.23321711]
[1704129604237,0.467235,42805.0,42798.0,0.2064928]
[1704129604238,0.93447,42805.0,42798.0,0.2064928]
[1704129604524,0.467246,42804.0,42800.0,0.2124]
[1704129604751,0.467246,42804.0,42801.0,0.23321711]
[1704129604984,0.467267,42802.0,42801.0,0.23321711]
[1704129606473,0.934534,42802.0,42800.0,0.003]
[1704129606649,0.467278,42801.0,42800.0,0.003]
[1704129606852,0.467278,42801.0,42798.0,0.2124]
[1704129607059,0.467289,42800.0,42799.0,0.23321711]
[1704129608671,0.467289,42800.0,42799.0,0.23921711]
[1704129609305,0.467289,42800.0,42799.0,0.24521711]
[1704129610683,0.1948,42804.0,42799.0,0.24521711]
[1704129610896,0.467289,42800.0,42799.0,0.24521711]
[1704129611530,0.467289,42800.0,42799.0,0.23921711]
[1704129612767,0.467289,42800.0,42799.0,0.012]
[1704129613008,0.934578,42800.0,42799.0,0.012]
[1704129614006,0.934578,42800.0,42799.0,0.006]
[1704129614517,0.934578,42800.0,42792.0,0.218]
[1704129614725,0.934578,42800.0,42786.0,0.1836892]
[1704129614726,0.46731,42799.0,42793.0,0.23321711]
[1704129615405,0.467355,42794.0,42788.0,0.218]
[1704129615619,0.467374,42793.0,42788.0,0.45121711]
[1704129615865,0.14872,42799.0,42788.0,0.23321711]
[1704129615866,0.467409,42789.0,42788.0,0.23321711]
[1704129617027,0.467409,42789.0,42788.0,0.23721711]
[1704129617273,0.467409,42789.0,42788.0,0.23321711]
[1704129617500,0.467409,42789.0,42788.0,0.24421711]
[1704129618457,0.467409,42789.0,42788.0,0.25421711]
[1704129624948,0.467409,42789.0,42788.0,0.35421711]
[1704129625864,0.467409,42789.0,42788.0,0.40527711]
[1704129627388,0.1942,42798.0,42789.0,0.2]
[1704129627614,0.1942,42798.0,42790.0,0.23321711]
[1704129627857,0.467385,42792.0,42790.0,0.45661711]
[1704129629450,0.467385,42792.0,42790.0,0.50161711]
[1704129629895,0.467385,42792.0,42790.0,0.45661711]
[1704129630113,0.467385,42792.0,42790.0,0.50257711]
[1704129630324,0.467385,42792.0,42790.0,0.50857711]
[1704129630771,0.467385,42792.0,42791.0,0.10817567]
[1704129631008,0.02846591,42800.0,42795.0,0.2]
[1704129631256,0.0784074,42806.0,42795.0,0.2]
[1704129631257,0.467307,42799.0,42796.0,0.33321711]
[1704129631488,0.0284074,42806.0,42796.0,0.6007708]
[1704129631489,0.467318,42798.0,42796.0,0.6007708]
[1704129631721,0.2127074,42806.0,42796.0,0.6007708]
[1704129631939,0.2127074,42806.0,42796.0,0.5545708]
[1704129632163,0.0284074,42806.0,42796.0,0.5545708]
[1704129632384,0.0284074,42806.0,42797.0,0.04671]
[1704129632613,0.1843,42807.0,42798.0,0.23321711]
[1704129632862,0.467242,42805.0,42798.0,0.24085146]
[1704129633104,0.467242,42805.0,42799.0,0.2192]
[1704129633357,0.467254,42804.0,42799.0,0.45241711]
[1704129633595,0.467242,42805.0,42800.0,0.00762839]
[1704129633869,0.467251,42804.0,42800.0,0.00762839]
[1704129634100,0.467278,42801.0,42800.0,0.00762839]
[1704129635768,0.934556,42801.0,42800.0,0.00762839]
[1704129636199,0.934556,42801.0,42794.0,0.04671]
[1704129636425,0.467344,42795.0,42794.0,0.27992711]
[1704129638630,0.467344,42795.0,42794.0,0.28592711]
[1704129639556,0.467344,42795.0,42794.0,0.05271]
[1704129640032,0.467344,42795.0,42794.0,0.05871]
[1704129640802,0.467344,42795.0,42794.0,0.05271]
[1704129641272,0.467344,42795.0,42790.0,0.04671]
[1704129641496,0.467344,42795.0,42794.0,0.009]
[1704129641689,0.467344,42795.0,42794.0,0.005]
[1704129641951,0.467344,42795.0,42794.0,0.004]
[1704129642397,0.467344,42795.0,42792.0,0.27481]
[1704129642617,0.467344,42795.0,42793.0,0.04671]
[1704129642866,0.467355,42794.0,42793.0,0.04671]
[1704129643819,0.467355,42794.0,42789.0,0.04671]
[1704129644048,0.467398,42790.0,42789.0,0.04671]
[1704129645640,0.467398,42790.0,42789.0,0.06636785]
[1704129646801,0.467398,42790.0,42789.0,0.07836785]
[1704129647320,0.1807,42794.0,42789.0,0.31158496]
[1704129647574,0.1807,42794.0,42790.0,0.27992711]
[1704129647830,0.467368,42793.0,42790.0,0.27992711]
[1704129648086,0.467344,42795.0,42791.0,0.00766485]
[1704129648344,0.467357,42794.0,42791.0,0.00766485]
[1704129648589,0.467377,42792.0,42791.0,0.00766485]
[1704129649326,0.467377,42792.0,42791.0,0.01166485]
[1704129650778,0.467377,42792.0,42791.0,0.02066485]
[1704129651007,0.467377,42792.0,42791.0,0.01666485]
[1704129651444,0.467377,42792.0,42791.0,0.02566485]
[1704129657755,0.467377,42792.0,42791.0,0.30559196]
[1704129657981,0.467377,42792.0,42791.0,0.56055196]
[1704129658211,0.02791634,42801.0,42793.0,0.04671]
[1704129658469,0.02791634,42801.0,42794.0,0.23321711]
[1704129658692,0.1847,42802.0,42794.0,0.4550843]
[1704129658693,0.01,42802.0,42794.0,0.4550843]
[1704129658890,0.467344,42795.0,42794.0,0.4550843]
[1704129660238,0.467344,42795.0,42794.0,0.5017943]
[1704129661406,0.467344,42795.0,42794.0,0.5107943]
[1704129661857,0.397344,42795.0,42794.0,0.5107943]
[1704129663618,0.864688,42795.0,42794.0,0.27757719]
[1704129663843,0.864688,42795.0,42794.0,0.06407719]
[1704129665590,0.864688,42795.0,42794.0,0.01736719]
[1704129666062,0.864688,42795.0,42794.0,0.009]
[1704129675002,0.11,42793.0,42781.0,0.7633128]
[1704129675225,1.99313318,42795.0,42783.0,0.2205]
[1704129675226,0.577387,42792.0,42783.0,0.2205]
[1704129675445,0.46742,42788.0,42782.0,0.24006518]
[1704129675669,0.46742,42788.0,42783.0,0.2205]
[1704129675891,0.46742,42788.0,42784.0,0.00684162]
[1704129676135,0.467406,42790.0,42783.0,0.2205]
[1704129676136,0.467453,42785.0,42783.0,0.22734485]
[1704129676365,0.467406,42790.0,42784.0,0.00684162]
[1704129676595,0.467453,42785.0,42784.0,0.00684162]
[1704129676819,0.467453,42785.0,42783.0,0.2205]
[1704129677017,0.24868,42789.0,42784.0,0.00684162]
[1704129677243,0.467437,42787.0,42784.0,0.00684162]
[1704129677471,0.467453,42785.0,42784.0,0.00684162]
[1704129678172,0.467453,42785.0,42781.0,0.004]
[1704129678419,0.467486,42782.0,42781.0,0.004]
[1704129680120,0.467486,42782.0,42781.0,0.009]
[1704129680698,0.467486,42782.0,42781.0,0.015]
[1704129686290,0.04512,42787.0,42781.0,0.015]
[1704129686572,0.467486,42782.0,42781.0,0.015]
[1704129688178,0.467486,42782.0,42781.0,0.01]
[1704129688403,0.001,42787.0,42781.0,0.01]
[1704129688642,0.467486,42782.0,42781.0,0.01]
[1704129689341,0.467486,42782.0,42781.0,0.24821711]
[1704129689570,0.467486,42782.0,42781.0,0.25546799]
[1704129690012,0.02737192,42790.0,42781.0,0.30217799]
[1704129690013,0.46747,42784.0,42781.0,0.30217799]
[1704129690230,0.467479,42783.0,42782.0,0.27992711]
[1704129690662,0.467479,42783.0,42782.0,0.28651559]
[1704129691539,0.467479,42783.0,42782.0,0.29151559]
[1704129692186,0.02737192,42790.0,42782.0,0.29151559]
[1704129692404,0.467479,42783.0,42782.0,0.29151559]
[1704129693354,0.467479,42783.0,42782.0,0.29551559]
[1704129695797,0.1819,42791.0,42782.0,0.29551559]
[1704129696012,0.467479,42783.0,42782.0,0.29551559]
[1704129697148,0.467479,42783.0,42782.0,0.29051559]
[1704129698018,0.467479,42783.0,42782.0,0.29151559]
[1704129699102,0.467479,42783.0,42782.0,0.29551559]
[1704129700649,0.934958,42783.0,42782.0,0.06229848]
[1704129701088,0.934958,42783.0,42782.0,0.05571]
[1704129701305,0.934958,42783.0,42782.0,0.06229192]
[1704129702454,0.934958,42783.0,42782.0,0.05571]
[1704129703121,0.934958,42783.0,42782.0,0.05071]
[1704129704195,0.934958,42783.0,42782.0,0.05328899]
[1704129704404,0.934958,42783.0,42782.0,0.04828899]
[1704129704651,0.934958,42783.0,42782.0,0.04928899]
[1704129704851,0.934958,42783.0,42782.0,0.04271]
[1704129705755,0.934958,42783.0,42782.0,0.04928899]
[1704129705983,0.934958,42783.0,42782.0,0.04271]
[1704129706207,0.934958,42783.0,42782.0,0.04994689]
[1704129707568,0.934958,42783.0,42782.0,0.04271]
[1704129710481,1.502437,42783.0,42782.0,0.001]
[1704129711792,1.503437,42783.0,42782.0,0.001]
[1704129712001,1.503437,42783.0,42781.0,0.004]
[1704129712216,1.402458,42782.0,42781.0,0.004]
[1704129714927,1.402458,42782.0,42781.0,0.005]
[1704129715139,1.461958,42782.0,42781.0,0.005]
[1704129715759,1.412458,42782.0,42781.0,0.005]
[1704129716788,0.934972,42782.0,42781.0,0.005]
[1704129717458,0.934972,42782.0,42781.0,0.01160525]
[1704129721186,0.02822468,42786.0,42781.0,0.01160525]
[1704129721421,0.1823,42788.0,42781.0,0.01160525]
[1704129721422,0.934972,42782.0,42781.0,0.01160525]
[1704129721863,0.864972,42782.0,42781.0,0.01160525]
[1704129722096,0.397486,42782.0,42781.0,0.01160525]
[1704129724692,0.1823,42788.0,42781.0,0.01160525]
[1704129724899,0.467486,42782.0,42781.0,0.01160525]
[1704129726207,0.467486,42782.0,42781.0,0.01260525]
[1704129726693,0.467486,42782.0,42781.0,0.01160525]
[1704129727603,0.467486,42782.0,42781.0,0.24482236]
[1704129729169,0.467486,42782.0,42781.0,0.24666583]
[1704129743851,0.467486,42782.0,42781.0,0.30264438]
[1704129744520,0.467486,42782.0,42781.0,0.24666583]
[1704129759256,0.467486,42782.0,42781.0,0.30274205]
[1704129761452,0.467486,42782.0,42781.0,0.24666583]
[1704129761889,0.467486,42782.0,42781.0,0.33078016]
[1704129762339,0.467486,42782.0,42781.0,0.24666583]
[1704129762553,0.467486,42782.0,42781.0,0.55613086]
[1704129765912,0.467486,42782.0,42781.0,0.47201653]
[1704129766165,0.467486,42782.0,42781.0,0.58416897]
[1704129766381,0.093603,42795.0,42793.0,0.1]
[1704129766622,0.093603,42795.0,42794.0,0.43321711]
[1704129766841,0.662947,42804.0,42795.0,0.1]
[1704129766842,0.467247,42804.0,42795.0,0.1]
[1704129767093,0.467313,42798.0,42797.0,0.1]
[1704129767326,0.467313,42798.0,42797.0,0.48921815]
[1704129767558,0.1957,42808.0,42798.0,0.1]